[Event "Early-Titled-Tuesday-Blitz-April-23-2024"]
[Site "Chess.com"]
[Date "2024.04.23"]
[Round "3"]
[White "Aslanov_Umid"]
[Black "zsizsi99"]
[Result "1-0"]
[WhiteElo "2645"]
[BlackElo "2467"]
[TimeControl "180+1"]
[EndTime "8:29:10 PDT"]
[Termination "Aslanov_Umid won on time"]

1. e4 {[%clk 0:03:00.9]} 1... c5 {[%clk 0:02:59]} 2. Nf3 {[%clk 0:03:01.4]} 2...
Nc6 {[%clk 0:02:59.5]} 3. d4 {[%clk 0:03:01.8]} 3... cxd4 {[%clk 0:03:00.1]} 4.
Nxd4 {[%clk 0:03:02.5]} 4... e5 {[%clk 0:03:00.6]} 5. Nb5 {[%clk 0:03:02.8]}
5... d6 {[%clk 0:03:01.2]} 6. c4 {[%clk 0:03:03]} 6... a6 {[%clk 0:03:01.2]} 7.
N5a3 {[%clk 0:03:03.1]} 7... Nf6 {[%clk 0:02:50.3]} 8. Nc3 {[%clk 0:03:03.4]}
8... g6 {[%clk 0:02:50.6]} 9. Nc2 {[%clk 0:02:59.6]} 9... Bg7 {[%clk 0:02:49.3]}
10. Bd3 {[%clk 0:03:00.2]} 10... Bg4 {[%clk 0:02:37.4]} 11. f3 {[%clk
0:02:55.5]} 11... Be6 {[%clk 0:02:36.5]} 12. O-O {[%clk 0:02:55.6]} 12... O-O
{[%clk 0:02:36.6]} 13. Be3 {[%clk 0:02:53.3]} 13... Nh5 {[%clk 0:02:31.1]} 14.
Nd5 {[%clk 0:02:47.6]} 14... Bxd5 {[%clk 0:02:15.7]} 15. cxd5 {[%clk 0:02:38.3]}
15... Nd4 {[%clk 0:02:15.7]} 16. Nxd4 {[%clk 0:02:08.5]} 16... exd4 {[%clk
0:02:15.9]} 17. Bd2 {[%clk 0:02:09.1]} 17... f5 {[%clk 0:01:51.5]} 18. a4 {[%clk
0:01:49.6]} 18... fxe4 {[%clk 0:01:49.4]} 19. fxe4 {[%clk 0:01:44.7]} 19... Qh4
{[%clk 0:01:34.7]} 20. Qe1 {[%clk 0:01:26.8]} 20... Rxf1+ {[%clk 0:01:18.2]} 21.
Bxf1 {[%clk 0:01:27.7]} 21... Qf6 {[%clk 0:01:14.4]} 22. Bd3 {[%clk 0:01:23.7]}
22... Nf4 {[%clk 0:01:08.5]} 23. Qf1 {[%clk 0:01:20.4]} 23... Rf8 {[%clk
0:01:02.1]} 24. Bxf4 {[%clk 0:01:13.5]} 24... Qxf4 {[%clk 0:01:02.5]} 25. Qxf4
{[%clk 0:01:13.8]} 25... Rxf4 {[%clk 0:01:03.1]} 26. Rf1 {[%clk 0:01:14.3]}
26... Bh6 {[%clk 0:00:41.7]} 27. b4 {[%clk 0:01:04.9]} 27... Rxf1+ {[%clk
0:00:33.9]} 28. Kxf1 {[%clk 0:01:05.8]} 28... Bd2 {[%clk 0:00:25.6]} 29. b5
{[%clk 0:01:00.8]} 29... axb5 {[%clk 0:00:25.9]} 30. Bxb5 {[%clk 0:00:52.6]}
30... Kf7 {[%clk 0:00:23.7]} 31. Ke2 {[%clk 0:00:53.1]} 31... Ba5 {[%clk
0:00:20.2]} 32. Bd7 {[%clk 0:00:50.9]} 32... b6 {[%clk 0:00:10.1]} 33. Kd3
{[%clk 0:00:49.7]} 33... Bc3 {[%clk 0:00:09.9]} 34. Kc4 {[%clk 0:00:50]} 34...
Kf6 {[%clk 0:00:09]} 35. Kb5 {[%clk 0:00:39.3]} 35... Ba5 {[%clk 0:00:05.9]} 36.
Kc4 {[%clk 0:00:32.5]} 36... Ke5 {[%clk 0:00:06.4]} 37. Kd3 {[%clk 0:00:33.2]}
37... Be1 {[%clk 0:00:04.7]} 38. Be6 {[%clk 0:00:32.9]} 38... g5 {[%clk
0:00:03.8]} 39. Bf5 {[%clk 0:00:32.1]} 39... h5 {[%clk 0:00:03.8]} 40. h3 {[%clk
0:00:25.5]} 40... Bc3 {[%clk 0:00:02]} 41. Kc4 {[%clk 0:00:25.2]} 41... Kf4
{[%clk 0:00:02.1]} 42. Bg6 {[%clk 0:00:20.5]} 42... h4 {[%clk 0:00:02.1]} 43.
Kb5 {[%clk 0:00:20]} 1-0

[Event "Early-Titled-Tuesday-Blitz-April-23-2024"]
[Site "Chess.com"]
[Date "2024.04.23"]
[Round "3"]
[White "ural58"]
[Black "BozeKat"]
[Result "1-0"]
[WhiteElo "2561"]
[BlackElo "2098"]
[TimeControl "180+1"]
[EndTime "8:29:11 PDT"]
[Termination "ural58 won on time"]

1. e4 {[%clk 0:02:59.4]} 1... c5 {[%clk 0:03:00.4]} 2. b3 {[%clk 0:02:58.7]}
2... a6 {[%clk 0:02:56.4]} 3. d4 {[%clk 0:02:57.3]} 3... cxd4 {[%clk 0:02:55.2]}
4. Qxd4 {[%clk 0:02:57.3]} 4... Nc6 {[%clk 0:02:55.9]} 5. Qd2 {[%clk 0:02:57.3]}
5... Nf6 {[%clk 0:02:48.7]} 6. Nc3 {[%clk 0:02:55.6]} 6... e6 {[%clk 0:02:42.6]}
7. Bb2 {[%clk 0:02:53.9]} 7... Bb4 {[%clk 0:02:33.2]} 8. f3 {[%clk 0:02:53.8]}
8... d5 {[%clk 0:02:31.9]} 9. a3 {[%clk 0:02:53.9]} 9... Bxc3 {[%clk 0:01:52.1]}
10. Bxc3 {[%clk 0:02:51.2]} 10... dxe4 {[%clk 0:01:52]} 11. Qxd8+ {[%clk
0:02:50.4]} 11... Nxd8 {[%clk 0:01:51.6]} 12. fxe4 {[%clk 0:02:47.7]} 12... Nxe4
{[%clk 0:01:45.4]} 13. Bxg7 {[%clk 0:02:47.4]} 13... Rg8 {[%clk 0:01:46]} 14.
Bb2 {[%clk 0:02:45.9]} 14... b5 {[%clk 0:01:39.5]} 15. Nf3 {[%clk 0:02:38.5]}
15... Bb7 {[%clk 0:01:36.3]} 16. a4 {[%clk 0:02:26.3]} 16... b4 {[%clk
0:01:33.9]} 17. a5 {[%clk 0:02:23.4]} 17... Rc8 {[%clk 0:01:31.3]} 18. Rc1
{[%clk 0:01:52.9]} 18... Nc3 {[%clk 0:01:30.6]} 19. Kf2 {[%clk 0:01:23.6]} 19...
Na2 {[%clk 0:01:19.5]} 20. Bd3 {[%clk 0:01:13.2]} 20... Nxc1 {[%clk 0:01:18.2]}
21. Rxc1 {[%clk 0:01:14.1]} 21... h6 {[%clk 0:00:49.5]} 22. g3 {[%clk
0:01:13.3]} 22... f5 {[%clk 0:00:46.3]} 23. Ne5 {[%clk 0:01:06.1]} 23... Nc6
{[%clk 0:00:42.9]} 24. Nc4 {[%clk 0:00:57.6]} 24... Ke7 {[%clk 0:00:38.1]} 25.
Re1 {[%clk 0:00:56.2]} 25... Rgf8 {[%clk 0:00:27.4]} 26. Bc1 {[%clk 0:00:48.4]}
26... Rf6 {[%clk 0:00:25.4]} 27. Be3 {[%clk 0:00:41.8]} 27... Nd8 {[%clk
0:00:11.1]} 28. Bd4 {[%clk 0:00:39.9]} 28... Rg6 {[%clk 0:00:10.1]} 29. Bxf5
{[%clk 0:00:34.6]} 29... Rg5 {[%clk 0:00:07]} 30. Bd3 {[%clk 0:00:32.3]} 30...
Bd5 {[%clk 0:00:06.6]} 31. Nb6 {[%clk 0:00:29.4]} 31... Ra8 {[%clk 0:00:03.5]}
32. Nxa8 {[%clk 0:00:28.9]} 32... Bxa8 {[%clk 0:00:03.5]} 33. Bxa6 {[%clk
0:00:28.7]} 33... Rxa5 {[%clk 0:00:03.7]} 34. Bc4 {[%clk 0:00:23.4]} 34... Ra2
{[%clk 0:00:03.8]} 35. Re2 {[%clk 0:00:23.6]} 35... Nc6 {[%clk 0:00:02.3]} 36.
Bc5+ {[%clk 0:00:20.6]} 36... Kd7 {[%clk 0:00:02.3]} 37. Bxe6+ {[%clk
0:00:20.6]} 37... Kc7 {[%clk 0:00:02.4]} 38. Bd5 {[%clk 0:00:20.4]} 38... Bb7
{[%clk 0:00:01.3]} 39. Bxc6 {[%clk 0:00:19]} 39... Bxc6 {[%clk 0:00:02.2]} 40.
Bxb4 {[%clk 0:00:19.5]} 40... Bb5 {[%clk 0:00:01.6]} 41. c4 {[%clk 0:00:18.5]}
41... Bc6 {[%clk 0:00:01.6]} 42. Rxa2 {[%clk 0:00:17.9]} 1-0

[Event "Early-Titled-Tuesday-Blitz-April-23-2024"]
[Site "Chess.com"]
[Date "2024.04.23"]
[Round "3"]
[White "mbojan"]
[Black "jk13"]
[Result "1-0"]
[WhiteElo "2913"]
[BlackElo "2674"]
[TimeControl "180+1"]
[EndTime "8:29:13 PDT"]
[Termination "mbojan won by resignation"]

1. a3 {[%clk 0:03:00.9]} 1... d5 {[%clk 0:02:59.8]} 2. e3 {[%clk 0:02:58.9]}
2... c6 {[%clk 0:03:00.1]} 3. d4 {[%clk 0:02:55.7]} 3... Bf5 {[%clk 0:02:56.9]}
4. c4 {[%clk 0:02:55.7]} 4... e6 {[%clk 0:02:56.4]} 5. Nc3 {[%clk 0:02:54.9]}
5... Nf6 {[%clk 0:02:56.1]} 6. Bd3 {[%clk 0:02:54.7]} 6... Bxd3 {[%clk
0:02:55.8]} 7. Qxd3 {[%clk 0:02:55.6]} 7... Nbd7 {[%clk 0:02:54.9]} 8. Nf3
{[%clk 0:02:55.9]} 8... Bd6 {[%clk 0:02:52.9]} 9. O-O {[%clk 0:02:56.1]} 9...
O-O {[%clk 0:02:52.8]} 10. e4 {[%clk 0:02:55.9]} 10... dxc4 {[%clk 0:02:52.5]}
11. Qxc4 {[%clk 0:02:55.3]} 11... e5 {[%clk 0:02:53.4]} 12. Bg5 {[%clk
0:02:54.8]} 12... h6 {[%clk 0:02:51.3]} 13. Bh4 {[%clk 0:02:54.1]} 13... Re8
{[%clk 0:02:51.6]} 14. Rad1 {[%clk 0:02:53.4]} 14... Qe7 {[%clk 0:02:44.4]} 15.
d5 {[%clk 0:02:46.2]} 15... g5 {[%clk 0:02:30.3]} 16. Bg3 {[%clk 0:02:45.2]}
16... Nb6 {[%clk 0:02:29.9]} 17. Qe2 {[%clk 0:02:34.5]} 17... cxd5 {[%clk
0:02:29.4]} 18. exd5 {[%clk 0:02:34.2]} 18... Rad8 {[%clk 0:02:07.9]} 19. Rfe1
{[%clk 0:02:32.5]} 19... e4 {[%clk 0:01:40.8]} 20. Bxd6 {[%clk 0:02:16.8]} 20...
Qxd6 {[%clk 0:01:30.4]} 21. Nd4 {[%clk 0:02:14.7]} 21... Qe5 {[%clk 0:01:27.7]}
22. Qb5 {[%clk 0:01:31.6]} 22... Nbxd5 {[%clk 0:00:50.2]} 23. Qxb7 {[%clk
0:01:29.7]} 23... Rb8 {[%clk 0:00:43.6]} 24. Qxa7 {[%clk 0:01:21.8]} 24... Rxb2
{[%clk 0:00:43.6]} 25. Nxd5 {[%clk 0:01:20.5]} 25... Qxd5 {[%clk 0:00:38.6]} 26.
Nc2 {[%clk 0:00:57]} 26... Qf5 {[%clk 0:00:33.5]} 27. Re2 {[%clk 0:00:39.8]}
27... Qb5 {[%clk 0:00:19.6]} 28. Nd4 {[%clk 0:00:33.3]} 28... Qb6 {[%clk
0:00:15.1]} 29. Qxb6 {[%clk 0:00:27.7]} 29... Rxb6 {[%clk 0:00:16]} 30. Nf5
{[%clk 0:00:28.4]} 30... Kh7 {[%clk 0:00:15.9]} 31. Nd6 {[%clk 0:00:22.9]} 31...
Ra8 {[%clk 0:00:11.9]} 32. h3 {[%clk 0:00:15.7]} 32... Rxa3 {[%clk 0:00:10.5]}
33. Nxf7 {[%clk 0:00:16]} 33... Ra5 {[%clk 0:00:09.5]} 34. Nd6 {[%clk
0:00:15.1]} 34... Re5 {[%clk 0:00:08.3]} 35. Nc4 {[%clk 0:00:15.4]} 35... Rbe6
{[%clk 0:00:07.4]} 36. Nxe5 {[%clk 0:00:15.7]} 36... Rxe5 {[%clk 0:00:08.3]} 37.
Rde1 {[%clk 0:00:16.4]} 37... Kg6 {[%clk 0:00:08.1]} 38. Ra1 {[%clk 0:00:16.5]}
38... Re6 {[%clk 0:00:08.2]} 39. Ra5 {[%clk 0:00:16.4]} 39... Nh5 {[%clk
0:00:07.3]} 40. Ra4 {[%clk 0:00:15.1]} 40... Nf6 {[%clk 0:00:07.6]} 41. Kh2
{[%clk 0:00:15.4]} 41... Rd6 {[%clk 0:00:07.8]} 42. Rea2 {[%clk 0:00:15.4]}
42... Rd3 {[%clk 0:00:07.3]} 43. Ra6 {[%clk 0:00:15.1]} 43... Rd5 {[%clk
0:00:08]} 44. Re2 {[%clk 0:00:14.8]} 44... Re5 {[%clk 0:00:07.8]} 45. Re3 {[%clk
0:00:14.5]} 45... Kf5 {[%clk 0:00:07.7]} 46. f3 {[%clk 0:00:13.4]} 46... exf3
{[%clk 0:00:07.2]} 47. Rxf3+ {[%clk 0:00:14.3]} 47... Kg6 {[%clk 0:00:07.5]} 1-0

[Event "Early-Titled-Tuesday-Blitz-April-23-2024"]
[Site "Chess.com"]
[Date "2024.04.23"]
[Round "3"]
[White "Martial2008"]
[Black "baki83"]
[Result "0-1"]
[WhiteElo "2681"]
[BlackElo "2915"]
[TimeControl "180+1"]
[EndTime "8:29:14 PDT"]
[Termination "baki83 won on time"]

1. d4 {[%clk 0:03:00.9]} 1... d5 {[%clk 0:02:58.3]} 2. Nf3 {[%clk 0:03:01.1]}
2... Nf6 {[%clk 0:02:58.1]} 3. Bf4 {[%clk 0:03:00.6]} 3... Bf5 {[%clk
0:02:58.4]} 4. c4 {[%clk 0:02:59.6]} 4... e6 {[%clk 0:02:58.5]} 5. Qb3 {[%clk
0:03:00.1]} 5... Nc6 {[%clk 0:02:58.1]} 6. c5 {[%clk 0:02:52.3]} 6... Qc8 {[%clk
0:02:41.5]} 7. e3 {[%clk 0:02:51.8]} 7... Be7 {[%clk 0:02:40.6]} 8. Nc3 {[%clk
0:02:50.8]} 8... O-O {[%clk 0:02:40.4]} 9. Bb5 {[%clk 0:02:48.8]} 9... Na5
{[%clk 0:02:32.1]} 10. Qa4 {[%clk 0:02:46.9]} 10... b6 {[%clk 0:02:30.9]} 11.
O-O {[%clk 0:02:36.4]} 11... c6 {[%clk 0:02:08.8]} 12. Be2 {[%clk 0:02:35.6]}
12... Nb7 {[%clk 0:02:08.9]} 13. b4 {[%clk 0:02:33.4]} 13... a5 {[%clk
0:02:05.3]} 14. b5 {[%clk 0:01:57.2]} 14... cxb5 {[%clk 0:02:00]} 15. Nxb5
{[%clk 0:01:55.2]} 15... bxc5 {[%clk 0:02:00.3]} 16. dxc5 {[%clk 0:01:55.3]}
16... Nxc5 {[%clk 0:02:00.1]} 17. Qd4 {[%clk 0:01:51.9]} 17... Nce4 {[%clk
0:01:32.1]} 18. Rfc1 {[%clk 0:01:48.2]} 18... Bc5 {[%clk 0:01:20.6]} 19. Qa4
{[%clk 0:01:37.6]} 19... Qe8 {[%clk 0:01:01]} 20. Nfd4 {[%clk 0:01:18.5]} 20...
Bg6 {[%clk 0:00:44.7]} 21. Nb3 {[%clk 0:01:02.2]} 21... Bb6 {[%clk 0:00:34.4]}
22. Qa3 {[%clk 0:01:01.8]} 22... e5 {[%clk 0:00:34.2]} 23. Bg3 {[%clk 0:00:58]}
23... Qe6 {[%clk 0:00:34.1]} 24. Nc7 {[%clk 0:00:44.6]} 24... Bxc7 {[%clk
0:00:33.6]} 25. Rxc7 {[%clk 0:00:45.5]} 25... Nxg3 {[%clk 0:00:27.8]} 26. hxg3
{[%clk 0:00:45.6]} 26... Ne4 {[%clk 0:00:28.3]} 27. Rac1 {[%clk 0:00:39.5]}
27... h6 {[%clk 0:00:28.3]} 28. Qe7 {[%clk 0:00:29.9]} 28... Qf5 {[%clk
0:00:26.5]} 29. Bf3 {[%clk 0:00:18.3]} 29... a4 {[%clk 0:00:26.6]} 30. Nc5
{[%clk 0:00:16.9]} 30... Nxc5 {[%clk 0:00:23.7]} 31. Qxc5 {[%clk 0:00:16.4]}
31... e4 {[%clk 0:00:23.2]} 32. Be2 {[%clk 0:00:16.5]} 32... Rfd8 {[%clk
0:00:18.3]} 33. Qd4 {[%clk 0:00:16.6]} 33... Qe6 {[%clk 0:00:18.1]} 34. R1c6
{[%clk 0:00:16.3]} 34... Rd6 {[%clk 0:00:16]} 35. Rc5 {[%clk 0:00:13.5]} 35...
Kh7 {[%clk 0:00:15.5]} 36. g4 {[%clk 0:00:12.3]} 36... a3 {[%clk 0:00:13.9]} 37.
g3 {[%clk 0:00:10.5]} 37... Rad8 {[%clk 0:00:13.9]} 38. Kg2 {[%clk 0:00:10.7]}
38... Rb6 {[%clk 0:00:13.7]} 39. Rc2 {[%clk 0:00:04.9]} 39... Rb1 {[%clk
0:00:12]} 40. R7c3 {[%clk 0:00:04.6]} 40... Qe7 {[%clk 0:00:08.8]} 41. Qa4
{[%clk 0:00:03.5]} 41... Rb2 {[%clk 0:00:08]} 0-1

[Event "Early-Titled-Tuesday-Blitz-April-23-2024"]
[Site "Chess.com"]
[Date "2024.04.23"]
[Round "3"]
[White "bangchess21"]
[Black "Orest_Vovk"]
[Result "1-0"]
[WhiteElo "2791"]
[BlackElo "2550"]
[TimeControl "180+1"]
[EndTime "8:29:16 PDT"]
[Termination "bangchess21 won on time"]

1. g3 {[%clk 0:03:00.9]} 1... g5 {[%clk 0:02:58.3]} 2. Bg2 {[%clk 0:03:01.8]}
2... g4 {[%clk 0:02:58.2]} 3. h3 {[%clk 0:02:58.5]} 3... d5 {[%clk 0:02:52.3]}
4. hxg4 {[%clk 0:02:57.9]} 4... Bxg4 {[%clk 0:02:49.3]} 5. c4 {[%clk 0:02:58.6]}
5... d4 {[%clk 0:02:41.7]} 6. Bxb7 {[%clk 0:02:52.7]} 6... Nd7 {[%clk
0:02:41.7]} 7. Bxa8 {[%clk 0:02:49.3]} 7... Qxa8 {[%clk 0:02:42.6]} 8. f3 {[%clk
0:02:49.1]} 8... d3 {[%clk 0:02:42.6]} 9. Nc3 {[%clk 0:02:40.2]} 9... Ngf6
{[%clk 0:02:29.6]} 10. Rh4 {[%clk 0:02:22.5]} 10... Be6 {[%clk 0:02:04.1]} 11.
b3 {[%clk 0:02:15.2]} 11... Rg8 {[%clk 0:01:55.1]} 12. Kf2 {[%clk 0:02:13.1]}
12... Qc6 {[%clk 0:01:34.1]} 13. e3 {[%clk 0:01:53.3]} 13... Qd6 {[%clk
0:01:28]} 14. g4 {[%clk 0:01:48.3]} 14... h5 {[%clk 0:01:26.6]} 15. Bb2 {[%clk
0:01:09.9]} 15... hxg4 {[%clk 0:01:22.1]} 16. Nb5 {[%clk 0:01:10.3]} 16... Qc5
{[%clk 0:00:49.7]} 17. Bd4 {[%clk 0:00:18.5]} 17... Qg5 {[%clk 0:00:40.3]} 18.
Rh1 {[%clk 0:00:14.8]} 18... Kd8 {[%clk 0:00:18.7]} 19. Qf1 {[%clk 0:00:09.4]}
19... Qf5 {[%clk 0:00:13.9]} 20. Ke1 {[%clk 0:00:06.7]} 20... c5 {[%clk
0:00:08.7]} 21. Bc3 {[%clk 0:00:04.9]} 21... a6 {[%clk 0:00:08.8]} 22. Ba5+
{[%clk 0:00:04.9]} 22... Kc8 {[%clk 0:00:07.4]} 23. Nc7 {[%clk 0:00:05.8]} 23...
Qe5 {[%clk 0:00:05.8]} 24. Rd1 {[%clk 0:00:03]} 24... g3 {[%clk 0:00:06]} 25.
Qg2 {[%clk 0:00:01.4]} 25... Bf5 {[%clk 0:00:05.3]} 26. Bc3 {[%clk 0:00:01.2]}
26... Qxc7 {[%clk 0:00:04.4]} 27. Rh4 {[%clk 0:00:01.9]} 27... Be6 {[%clk
0:00:04.2]} 28. Re4 {[%clk 0:00:02.1]} 28... Ne8 {[%clk 0:00:03.4]} 29. Rf4
{[%clk 0:00:02.2]} 29... Nef6 {[%clk 0:00:03.4]} 30. Rh4 {[%clk 0:00:02.5]}
30... Bg7 {[%clk 0:00:03.6]} 31. Rh3 {[%clk 0:00:02.4]} 31... Ne8 {[%clk
0:00:03.7]} 32. Rxg3 {[%clk 0:00:02.7]} 32... Nef6 {[%clk 0:00:01.4]} 33. e4
{[%clk 0:00:02.1]} 33... Bf8 {[%clk 0:00:01.7]} 34. Rg4 {[%clk 0:00:02.6]} 34...
Rxg4 {[%clk 0:00:01.3]} 35. fxg4 {[%clk 0:00:03.5]} 35... Nxg4 {[%clk
0:00:01.7]} 36. Nf3 {[%clk 0:00:04]} 36... Ngf6 {[%clk 0:00:01.4]} 37. e5 {[%clk
0:00:04.9]} 1-0

[Event "Early-Titled-Tuesday-Blitz-April-23-2024"]
[Site "Chess.com"]
[Date "2024.04.23"]
[Round "3"]
[White "Sofia_Blokhin"]
[Black "Gryffindorac8"]
[Result "0-1"]
[WhiteElo "2245"]
[BlackElo "2440"]
[TimeControl "180+1"]
[EndTime "8:29:16 PDT"]
[Termination "Gryffindorac8 won by resignation"]

1. d4 {[%clk 0:03:00.9]} 1... Nf6 {[%clk 0:02:59.8]} 2. c4 {[%clk 0:03:00.5]}
2... c5 {[%clk 0:02:59.5]} 3. d5 {[%clk 0:03:00.1]} 3... b5 {[%clk 0:02:58.3]}
4. cxb5 {[%clk 0:03:00.1]} 4... a6 {[%clk 0:02:58.3]} 5. bxa6 {[%clk 0:03:00.4]}
5... Bxa6 {[%clk 0:02:58]} 6. Nc3 {[%clk 0:03:00.6]} 6... d6 {[%clk 0:02:56.3]}
7. Nf3 {[%clk 0:03:00.7]} 7... g6 {[%clk 0:02:56.2]} 8. e4 {[%clk 0:03:00.8]}
8... Bxf1 {[%clk 0:02:57.1]} 9. Kxf1 {[%clk 0:03:01.3]} 9... Bg7 {[%clk
0:02:55.8]} 10. g3 {[%clk 0:03:01.5]} 10... O-O {[%clk 0:02:54.3]} 11. Kg2
{[%clk 0:03:01.7]} 11... Nbd7 {[%clk 0:02:54.9]} 12. Re1 {[%clk 0:03:01.3]}
12... Ng4 {[%clk 0:02:53.7]} 13. h3 {[%clk 0:02:54]} 13... Nge5 {[%clk
0:02:53.4]} 14. Nxe5 {[%clk 0:02:49.4]} 14... Nxe5 {[%clk 0:02:54.3]} 15. f4
{[%clk 0:02:46.6]} 15... Nd7 {[%clk 0:02:44.3]} 16. h4 {[%clk 0:02:39.6]} 16...
h5 {[%clk 0:02:37]} 17. g4 {[%clk 0:02:24.7]} 17... Nf6 {[%clk 0:02:12.2]} 18.
gxh5 {[%clk 0:02:23.5]} 18... Nxh5 {[%clk 0:02:04.9]} 19. e5 {[%clk 0:02:15.5]}
19... e6 {[%clk 0:01:40.2]} 20. Qg4 {[%clk 0:02:07.4]} 20... dxe5 {[%clk
0:01:33]} 21. dxe6 {[%clk 0:02:02.6]} 21... fxe6 {[%clk 0:01:25.4]} 22. Qxg6
{[%clk 0:01:50.5]} 22... Nxf4+ {[%clk 0:01:01.4]} 23. Bxf4 {[%clk 0:01:49.5]}
23... Rxf4 {[%clk 0:00:57.5]} 24. Qxe6+ {[%clk 0:01:47.8]} 24... Kh8 {[%clk
0:00:55.3]} 25. Rad1 {[%clk 0:01:28.6]} 25... Qf8 {[%clk 0:00:40.5]} 26. Ne4
{[%clk 0:01:17.7]} 26... Re8 {[%clk 0:00:35.3]} 27. Qg6 {[%clk 0:01:12.4]} 27...
Rb8 {[%clk 0:00:23.7]} 28. b3 {[%clk 0:01:08]} 28... c4 {[%clk 0:00:20.9]} 29.
h5 {[%clk 0:01:02.3]} 29... cxb3 {[%clk 0:00:17.2]} 30. h6 {[%clk 0:00:59.2]}
30... Bxh6 {[%clk 0:00:16]} 31. Rd7 {[%clk 0:00:51.7]} 31... Qg8 {[%clk
0:00:14.2]} 32. Rd6 {[%clk 0:00:46.9]} 32... Qxg6+ {[%clk 0:00:13.7]} 33. Rxg6
{[%clk 0:00:46.7]} 33... Kh7 {[%clk 0:00:14.3]} 34. Ra6 {[%clk 0:00:43.2]} 34...
b2 {[%clk 0:00:14.1]} 35. Nc3 {[%clk 0:00:40.8]} 35... Rg8+ {[%clk 0:00:12.7]}
36. Kh3 {[%clk 0:00:38.7]} 36... Rc4 {[%clk 0:00:12.9]} 37. Nb1 {[%clk
0:00:19.3]} 37... Rc1 {[%clk 0:00:11.7]} 38. Rxe5 {[%clk 0:00:18.9]} 38... Rxb1
{[%clk 0:00:10.8]} 39. Re7+ {[%clk 0:00:16.1]} 39... Rg7 {[%clk 0:00:10.4]} 40.
Rxg7+ {[%clk 0:00:07.9]} 40... Bxg7 {[%clk 0:00:11.3]} 41. Rb6 {[%clk
0:00:05.8]} 41... Rh1+ {[%clk 0:00:09.4]} 42. Kg4 {[%clk 0:00:04.2]} 42... b1=Q
{[%clk 0:00:09.5]} 0-1

[Event "Early-Titled-Tuesday-Blitz-April-23-2024"]
[Site "Chess.com"]
[Date "2024.04.23"]
[Round "3"]
[White "maximnovik"]
[Black "Sasha_Solovev_777"]
[Result "1-0"]
[WhiteElo "2578"]
[BlackElo "2217"]
[TimeControl "180+1"]
[EndTime "8:29:18 PDT"]
[Termination "maximnovik won by resignation"]

1. e4 {[%clk 0:02:56.2]} 1... c5 {[%clk 0:02:59.3]} 2. Nf3 {[%clk 0:02:55.9]}
2... d6 {[%clk 0:02:59.6]} 3. c3 {[%clk 0:02:55.3]} 3... Nf6 {[%clk 0:02:55]} 4.
h3 {[%clk 0:02:55.4]} 4... Nc6 {[%clk 0:02:54.4]} 5. Bd3 {[%clk 0:02:55]} 5...
e6 {[%clk 0:02:53.4]} 6. O-O {[%clk 0:02:54.7]} 6... Be7 {[%clk 0:02:53.7]} 7.
Bc2 {[%clk 0:02:52.5]} 7... O-O {[%clk 0:02:53.8]} 8. d4 {[%clk 0:02:52.4]} 8...
Re8 {[%clk 0:02:48.2]} 9. Re1 {[%clk 0:02:49.8]} 9... cxd4 {[%clk 0:02:37.2]}
10. cxd4 {[%clk 0:02:48.5]} 10... e5 {[%clk 0:02:36.2]} 11. d5 {[%clk
0:02:46.8]} 11... Nb4 {[%clk 0:02:21.4]} 12. Bb3 {[%clk 0:02:46.6]} 12... h6
{[%clk 0:02:07.4]} 13. Nc3 {[%clk 0:02:46.3]} 13... Bd7 {[%clk 0:02:04.1]} 14.
a3 {[%clk 0:02:45.3]} 14... Na6 {[%clk 0:02:03.8]} 15. Be3 {[%clk 0:02:45.3]}
15... Bf8 {[%clk 0:01:59.6]} 16. Rc1 {[%clk 0:02:34.3]} 16... b6 {[%clk
0:01:54]} 17. Bc4 {[%clk 0:02:29.7]} 17... Nc5 {[%clk 0:01:49.3]} 18. Nd2 {[%clk
0:02:27.3]} 18... a5 {[%clk 0:01:43.7]} 19. Qe2 {[%clk 0:02:15.6]} 19... a4
{[%clk 0:01:33.6]} 20. Bb5 {[%clk 0:02:13]} 20... Bxb5 {[%clk 0:01:24.7]} 21.
Qxb5 {[%clk 0:02:10.7]} 21... Qd7 {[%clk 0:01:13.8]} 22. Qxd7 {[%clk 0:02:08.3]}
22... Nfxd7 {[%clk 0:01:14.7]} 23. Rc2 {[%clk 0:02:03.7]} 23... g6 {[%clk
0:01:06.5]} 24. Nb5 {[%clk 0:02:02.4]} 24... Rec8 {[%clk 0:01:03.1]} 25. f3
{[%clk 0:01:48.7]} 25... Nd3 {[%clk 0:00:54.2]} 26. Rxc8 {[%clk 0:01:46]} 26...
Rxc8 {[%clk 0:00:55.1]} 27. Rb1 {[%clk 0:01:43.6]} 27... Rc2 {[%clk 0:00:49.8]}
28. b4 {[%clk 0:01:28.7]} 28... f5 {[%clk 0:00:43]} 29. Nf1 {[%clk 0:01:10.4]}
29... f4 {[%clk 0:00:20]} 30. Bd2 {[%clk 0:01:08.7]} 30... Nb2 {[%clk
0:00:16.3]} 31. Rc1 {[%clk 0:01:03.2]} 31... Rxc1 {[%clk 0:00:14.2]} 32. Bxc1
{[%clk 0:01:03.2]} 32... Nc4 {[%clk 0:00:15.1]} 33. Nc3 {[%clk 0:01:01.1]} 33...
Be7 {[%clk 0:00:12.4]} 34. Nxa4 {[%clk 0:01:00.5]} 34... b5 {[%clk 0:00:12.7]}
35. Nc3 {[%clk 0:00:58.7]} 35... Ndb6 {[%clk 0:00:12.6]} 36. Nxb5 {[%clk
0:00:58.3]} 36... Kf7 {[%clk 0:00:12.8]} 37. Nd2 {[%clk 0:00:54.7]} 37... Nxd2
{[%clk 0:00:11.5]} 38. Bxd2 {[%clk 0:00:54.5]} 38... Nc4 {[%clk 0:00:12.4]} 39.
Bc1 {[%clk 0:00:54]} 39... Ke8 {[%clk 0:00:12.4]} 40. Kf1 {[%clk 0:00:53.7]}
40... Kd7 {[%clk 0:00:13]} 41. Ke2 {[%clk 0:00:53.7]} 41... g5 {[%clk
0:00:13.7]} 42. Kd3 {[%clk 0:00:53.4]} 42... Nb6 {[%clk 0:00:13.9]} 43. Nc3
{[%clk 0:00:51.9]} 43... h5 {[%clk 0:00:13.3]} 44. a4 {[%clk 0:00:52.1]} 44...
g4 {[%clk 0:00:13.1]} 45. fxg4 {[%clk 0:00:50.7]} 45... hxg4 {[%clk 0:00:14]}
46. hxg4 {[%clk 0:00:50.7]} 46... Bh4 {[%clk 0:00:13.5]} 47. a5 {[%clk
0:00:46.4]} 47... Na8 {[%clk 0:00:12.4]} 48. b5 {[%clk 0:00:46.5]} 48... Bf2
{[%clk 0:00:11.8]} 49. Kc4 {[%clk 0:00:46]} 49... Bd4 {[%clk 0:00:11.1]} 50. Ne2
{[%clk 0:00:40.8]} 50... Bf2 {[%clk 0:00:10.4]} 51. g5 {[%clk 0:00:40.4]} 51...
Nc7 {[%clk 0:00:10.5]} 52. g6 {[%clk 0:00:39]} 1-0